bitfinex/quotes_SOLUSD_20241121
["timestamp","ask_amount","ask_price","bid_price","bid_amount"]
[1732210771019,0.5,257.03,256.97,20.0]
[1732210771215,0.5,257.03,256.99,20.0]
[1732210771451,0.5,256.96,256.91,18.80849523]
[1732210771620,0.5,256.94,256.91,18.80849523]
[1732210771937,1.0,256.98,256.91,18.80849523]
[1732210772643,0.5,256.98,256.93,18.80849523]
[1732210772828,0.5,257.0,256.95,18.80849523]
[1732210773033,0.5,257.01,256.96,20.0]
[1732210773234,43.6385,257.03,256.97,18.80849523]
[1732210773620,12.7214,257.03,256.98,20.0]
[1732210774241,12.7214,257.03,256.97,18.80849523]
[1732210774242,0.5,256.98,256.97,18.80849523]
[1732210774423,1.0,257.0,256.95,18.80849523]
[1732210775025,1.0,256.96,256.91,18.80849523]
[1732210775228,0.5,256.96,256.91,18.80849523]
[1732210775436,12.7214,257.03,256.95,18.80849523]
[1732210775749,0.5,257.0,256.98,18.80849523]
[1732210775928,0.5,257.02,256.96,18.80849523]
[1732210776122,0.5,257.08,257.02,18.80849523]
[1732210776323,0.5,257.08,257.06,18.80849523]
[1732210777053,0.5,257.07,257.02,18.80849523]
[1732210777224,0.5,257.07,256.89,23.776884]
[1732210777421,0.5,257.09,257.04,18.80849523]
[1732210777636,0.5,257.09,257.06,18.80849523]
[1732210778025,0.5,257.09,256.89,23.776884]
[1732210778321,0.5,257.09,257.06,18.80849523]
[1732210778537,13.291,257.11,257.06,18.80849523]
[1732210778742,0.5,257.09,257.06,18.80849523]
[1732210779249,1.0,257.11,257.06,18.80849523]
[1732210779546,0.5,257.11,257.06,18.80849523]
[1732210779851,13.0596,257.18,257.01,18.80849523]
[1732210779852,0.5,257.23,257.12,23.776884]
[1732210780143,0.5,257.24,257.22,18.80849523]
[1732210780720,0.5,257.24,257.14,18.80849523]
[1732210780721,0.5,257.24,257.23,30.60146788]
[1732210780924,1.0,257.24,257.21,30.60146788]
[1732210781324,34.48806788,257.3,257.19,30.60146788]
[1732210781325,0.5,257.21,257.19,30.60146788]
[1732210781543,0.5,257.18,257.17,30.60146788]
[1732210781730,0.5,257.11,256.88,13.1144]
[1732210781941,0.5,257.13,257.07,30.60146788]
[1732210781942,0.5,257.12,257.07,30.60146788]
[1732210782254,0.5,257.12,257.09,30.60146788]
[1732210782624,0.5,257.11,257.09,30.60146788]
[1732210782837,0.5,257.1,257.09,30.60146788]
[1732210783145,1.0,257.15,257.09,30.60146788]
[1732210783446,0.5,257.2,257.14,30.60146788]
[1732210783657,0.5,257.24,257.19,30.60146788]
[1732210785354,0.5,257.24,257.22,30.60146788]
[1732210785546,0.5,257.38,257.23,43.776884]
[1732210785749,0.5,257.37,257.34,30.60146788]
[1732210785954,1.0,257.39,257.34,30.60146788]
[1732210786335,0.5,257.37,257.32,30.60146788]
[1732210786662,0.5,257.32,257.29,20.0]
[1732210787040,1.0,257.34,257.29,20.0]
[1732210787356,0.5,257.33,257.29,20.0]
[1732210787533,0.5,257.33,257.05,32.78563898]
[1732210787534,0.5,257.29,256.94,16.9884]
[1732210787738,0.5,257.29,257.22,30.60146788]
[1732210787934,0.5,257.29,257.24,30.60146788]
[1732210788547,0.5,257.26,257.24,30.60146788]
[1732210788750,0.5,257.27,257.24,30.60146788]
[1732210789342,0.5,257.29,257.24,30.60146788]
[1732210789541,0.5,257.26,257.24,30.60146788]
[1732210789860,0.5,257.26,257.22,30.60146788]
[1732210789861,0.46241833,257.26,257.22,30.60146788]
[1732210790059,0.46241833,257.25,257.22,30.60146788]
[1732210790372,0.46241833,257.3,257.24,30.60146788]
[1732210790537,12.78731833,257.33,257.26,30.60146788]
[1732210790737,0.5,257.31,257.26,30.60146788]
[1732210790955,0.96241833,257.39,257.31,20.0]
[1732210791162,0.96241833,257.39,257.35,30.60146788]
[1732210791463,31.10146788,257.53,257.15,20.0]
[1732210791464,31.56388621,257.36,257.15,20.0]
[1732210791638,0.46241833,257.34,257.28,20.0]
[1732210792051,0.46241833,257.34,257.3,20.0]
[1732210792665,0.46241833,257.34,257.3,30.60146788]
[1732210792852,0.46241833,257.36,257.3,30.60146788]
[1732210793042,0.46241833,257.34,257.31,20.0]
[1732210793759,0.5,257.35,257.31,20.0]
[1732210793966,0.46241833,257.34,257.31,20.0]
[1732210794562,0.96241833,257.37,257.31,20.0]
[1732210794782,0.46241833,257.34,257.31,20.0]
[1732210794958,0.46241833,257.44,257.32,30.60146788]
[1732210795157,0.46241833,257.44,257.4,30.60146788]
[1732210797259,0.46241833,257.44,257.39,20.0]
[1732210798067,0.5,257.52,257.42,30.60146788]
[1732210798262,0.5,257.58,257.51,30.60146788]
[1732210798470,0.46241833,257.54,257.51,30.60146788]
[1732210798679,0.46241833,257.51,257.49,30.60146788]
[1732210798876,0.46241833,257.53,257.48,20.0]
[1732210799047,60.78876788,257.66,257.48,20.0]
[1732210799048,0.46241833,257.61,257.48,20.0]
[1732210799252,0.46241833,257.63,257.58,30.60146788]
[1732210799452,30.60146788,257.69,257.59,20.0]
[1732210799759,0.5,257.67,257.64,30.60146788]
[1732210800273,0.46241833,257.64,257.62,30.60146788]
[1732210800572,12.3759,257.73,257.53,30.60146788]
[1732210800573,0.5,257.65,257.6,30.60146788]
[1732210800981,0.96241833,257.63,257.6,30.60146788]
[1732210801266,0.96241833,257.49,257.44,30.60146788]
[1732210801442,0.46241833,257.49,257.44,30.60146788]
[1732210801859,0.5,257.56,257.48,30.60146788]
[1732210802062,0.5,257.54,257.51,30.60146788]
[1732210802383,0.5,257.54,257.29,15.514356]
[1732210802384,0.46241833,257.46,257.43,30.60146788]
[1732210802678,0.46241833,257.43,257.41,30.60146788]
[1732210802849,0.46241833,257.43,257.37,30.60146788]
[1732210803048,0.46241833,257.38,257.33,30.60146788]
[1732210803576,0.46241833,257.35,257.31,30.60146788]
[1732210803746,0.46241833,257.32,257.27,30.60146788]
[1732210803952,0.96241833,257.29,257.25,30.60146788]
[1732210804175,0.46241833,257.27,257.23,30.60146788]
[1732210804474,0.46241833,257.21,257.19,30.60146788]
[1732210804646,0.46241833,257.23,257.19,30.60146788]
[1732210804849,0.46241833,257.23,257.08,3.05436054]
[1732210804850,0.5,257.37,257.32,162.7]
[1732210805071,0.46241833,257.33,257.32,30.60146788]
[1732210805948,0.46241833,257.44,257.33,20.0]
[1732210806148,0.46241833,257.51,257.44,20.0]
[1732210806371,0.5,257.55,257.5,30.60146788]
[1732210806576,0.46241833,257.54,257.52,30.60146788]
[1732210807149,0.46241833,257.63,257.53,50.60146788]
[1732210807448,0.96241833,257.72,257.63,20.0]
[1732210807653,3.84605833,257.7,257.66,20.0]
[1732210807858,2.88364,257.7,257.65,30.60146788]
[1732210808073,2.88364,257.7,257.69,50.60146788]
[1732210810549,0.46241833,257.8,257.79,20.0]
[1732210810766,0.46241833,257.82,257.79,50.60146788]
[1732210810962,0.46241833,257.82,257.81,30.60146788]
[1732210811353,0.46241833,257.82,257.79,30.60146788]
[1732210811554,0.46241833,257.82,257.8,20.0]
[1732210811753,0.96241833,257.85,257.8,20.0]
[1732210811978,0.5,257.85,257.8,20.0]
[1732210812177,0.46241833,257.82,257.81,50.60146788]
[1732210812479,0.96241833,257.85,257.81,30.60146788]
[1732210812665,0.46241833,257.82,257.81,30.60146788]
[1732210812862,0.96241833,257.88,257.82,20.0]
[1732210813067,25.9135,258.0,257.67,18.48550526]
[1732210813068,13.0,258.0,257.88,20.0]
[1732210813268,0.46241833,257.99,257.92,81.20293576]
[1732210813576,13.0,258.0,257.92,81.20293576]
[1732210813782,0.46241833,257.99,257.92,81.20293576]
[1732210814081,0.30025229,257.93,257.92,81.20293576]
[1732210814656,0.30025229,257.93,257.92,30.60146788]
[1732210814857,0.5,257.89,257.88,30.60146788]
[1732210815075,0.96241833,257.89,257.88,30.60146788]
[1732210815461,0.46241833,257.89,257.88,30.60146788]
[1732210816095,0.96241833,257.89,257.88,30.60146788]
[1732210816377,0.46241833,257.81,257.8,30.60146788]
[1732210817762,0.46241833,257.81,257.8,50.60146788]
[1732210817962,0.46241833,257.85,257.8,50.60146788]
[1732210818165,0.46241833,257.85,257.83,30.60146788]
[1732210818383,43.776884,258.12,257.86,0.5]
[1732210818583,30.60146788,257.94,257.86,0.5]
[1732210819569,30.60146788,258.05,257.86,0.5]
[1732210819570,30.60146788,257.92,257.86,0.5]
[1732210820162,30.60146788,257.94,257.86,0.5]
[1732210820362,30.60146788,257.9,257.84,0.5]
[1732210821074,30.60146788,257.85,257.69,0.5]
[1732210821283,30.60146788,257.78,257.69,31.10146788]
[1732210821474,30.60146788,257.78,257.72,0.5]
[1732210822075,34.48036788,257.8,257.72,0.5]
[1732210822277,30.60146788,257.78,257.72,0.5]
[1732210822908,30.60146788,257.81,257.74,0.5]
[1732210823207,30.60146788,257.81,257.67,20.5]
[1732210823208,13.3295,257.83,257.79,0.5]
[1732210823374,13.3295,257.83,257.74,30.60146788]
[1732210823579,30.60146788,257.78,257.71,0.5]
[1732210823801,30.60146788,257.72,257.66,0.5]
[1732210824094,30.60146788,257.72,257.5,0.5]
[1732210824095,30.60146788,257.67,257.56,0.5]
[1732210824300,30.60146788,257.65,257.58,0.5]
[1732210824492,30.60146788,257.67,257.61,0.5]
[1732210824996,30.60146788,257.69,257.61,0.5]
[1732210825375,30.60146788,257.69,257.63,0.5]
[1732210825576,30.60146788,257.67,257.63,0.5]
[1732210826003,30.60146788,257.79,257.63,0.5]
[1732210826004,30.60146788,257.71,257.63,0.5]
[1732210826186,30.60146788,257.73,257.64,0.5]
[1732210826378,30.60146788,257.73,257.66,1.0]
[1732210826995,30.60146788,257.67,257.61,0.5]
[1732210827390,30.60146788,257.73,257.66,0.5]
[1732210827575,30.60146788,257.73,257.64,0.5]
[1732210827897,3.8792,257.78,257.62,0.5]
[1732210827898,30.60146788,257.69,257.62,0.5]
[1732210828791,30.60146788,257.69,257.61,0.5]
[1732210830090,30.60146788,257.69,257.6,4.8818]
[1732210830493,30.60146788,257.67,257.6,1.0]
[1732210830692,30.60146788,257.63,257.57,0.5]
[1732210830999,30.60146788,257.59,257.52,0.5]
[1732210831306,30.60146788,257.53,257.46,0.5]
[1732210831881,30.60146788,257.53,257.48,0.5]
[1732210832686,30.60146788,257.53,257.46,0.5]
[1732210832891,30.60146788,257.53,257.49,0.5]
[1732210833090,30.60146788,257.59,257.51,0.5]
[1732210833282,30.60146788,257.59,257.5,30.60146788]
[1732210833487,30.60146788,257.59,257.53,0.5]
[1732210834006,30.60146788,257.59,257.54,0.5]
[1732210834204,32.1686,257.68,257.53,0.5]
[1732210834205,30.60146788,257.77,257.69,0.5]
[1732210834506,30.60146788,257.79,257.69,31.10146788]
[1732210834708,30.60146788,257.77,257.69,0.5]
[1732210834902,30.60146788,257.75,257.66,30.60146788]
[1732210835206,34.48116788,257.75,257.65,4.8811]
[1732210835408,34.48116788,257.75,257.67,0.5]
[1732210835603,34.48116788,257.75,257.67,1.0]
[1732210835787,34.48116788,257.75,257.67,0.5]
[1732210835987,30.60146788,257.75,257.69,0.5]
[1732210836193,30.60146788,257.77,257.69,0.5]
[1732210836388,30.60146788,257.77,257.68,0.5]
[1732210836596,30.60146788,257.72,257.62,30.60146788]
[1732210837309,30.60146788,257.68,257.59,14.0872]
[1732210837481,30.60146788,257.68,257.62,0.5]
[1732210837682,30.60146788,257.65,257.56,0.5]
[1732210838102,12.2031,257.69,257.59,30.60146788]
[1732210838300,12.2031,257.69,257.61,0.5]
[1732210838502,12.2031,257.69,257.63,0.5]
[1732210838885,12.2031,257.69,257.61,31.10146788]
[1732210839088,30.60146788,257.68,257.57,31.10146788]
[1732210839289,3.8809,257.67,257.57,30.60146788]
[1732210839496,3.8809,257.67,257.57,34.48376788]
[1732210839801,30.60146788,257.66,257.57,30.60146788]
[1732210840002,30.60146788,257.64,257.55,30.60146788]
[1732210840214,30.60146788,257.64,257.56,0.5]
[1732210840386,30.60146788,257.64,257.55,34.48416788]
[1732210840703,30.60146788,257.64,257.54,0.5]
[1732210841004,36.8887,257.68,257.6,0.5]
[1732210841207,36.8887,257.68,257.62,0.5]
[1732210841386,36.8887,257.68,257.61,0.5]
[1732210841705,67.49016788,257.68,257.6,0.5]
[1732210842117,33.008,257.68,257.62,30.60146788]
[1732210842406,33.008,257.68,257.61,0.5]
[1732210842407,36.8888,257.68,257.61,0.5]
[1732210842986,30.60146788,257.66,257.56,31.10146788]
[1732210843194,30.60146788,257.62,257.53,1.0]
[1732210843408,30.60146788,257.62,257.56,0.5]
[1732210843711,3.8818,257.61,257.56,0.5]
[1732210843928,3.8818,257.61,257.45,19.4206]
[1732210843929,30.60146788,257.59,257.5,30.60146788]
[1732210844311,30.60146788,257.59,257.5,0.5]
[1732210845283,30.60146788,257.59,257.51,0.5]
[1732210845489,3.8822,257.58,257.51,0.5]
[1732210845786,3.882,257.6,257.53,0.5]
[1732210846407,3.882,257.6,257.51,10.2083]
[1732210846602,30.60146788,257.59,257.51,10.2083]
[1732210846981,12.0184,257.52,257.41,1.0]
[1732210847188,30.60146788,257.48,257.38,30.60146788]
[1732210847410,30.60146788,257.44,257.38,0.5]
[1732210847600,34.48586788,257.44,257.38,0.5]
[1732210848204,30.60146788,257.42,257.34,31.10146788]
[1732210848425,32.1227,257.5,257.44,0.5]
[1732210848708,32.1227,257.5,257.45,0.5]
[1732210849011,30.60146788,257.47,257.39,0.5]
[1732210849318,30.60146788,257.43,257.37,0.5]
[1732210849622,30.60146788,257.39,257.31,30.60146788]
[1732210849910,30.60146788,257.39,257.31,31.10146788]
[1732210850113,13.5927,257.49,257.31,31.10146788]
[1732210850114,30.60146788,257.41,257.34,0.5]
[1732210850310,30.60146788,257.41,257.32,0.5]
[1732210850512,30.60146788,257.41,257.31,30.60146788]
[1732210850688,30.60146788,257.39,257.32,0.5]
[1732210851298,30.60146788,257.53,257.3,14.1026]
[1732210851299,9.7053,257.59,257.45,0.5]
[1732210851498,34.48416788,257.55,257.47,0.5]
[1732210852313,34.48416788,257.55,257.49,0.5]
[1732210852616,12.4141,257.61,257.46,3.884]
[1732210852617,16.2959,257.61,257.55,0.5]
[1732210853113,16.2959,257.61,257.58,0.5]
[1732210853114,12.4141,257.61,257.58,0.5]
[1732210853720,30.60146788,257.6,257.53,0.5]
[1732210853914,30.60146788,257.54,257.46,9.71]
[1732210854114,30.60146788,257.54,257.44,34.98576788]
[1732210854302,30.60146788,257.54,257.45,1.0]
[1732210854617,30.60146788,257.54,257.49,0.5]
[1732210855124,30.60146788,257.54,257.46,0.5]
[1732210855301,34.48446788,257.54,257.46,0.5]
[1732210856015,34.48446788,257.54,257.43,0.5]
[1732210856016,34.48446788,257.54,257.44,30.60146788]
[1732210856191,34.48446788,257.54,257.46,0.5]
[1732210857214,30.60146788,257.56,257.52,0.5]
[1732210857402,34.48386788,257.58,257.48,31.10146788]
[1732210857603,34.48386788,257.58,257.4,30.60146788]
[1732210857604,30.60146788,257.54,257.45,30.60146788]
[1732210857805,3.8824,257.58,257.38,1.0]
[1732210857806,30.60146788,257.49,257.38,1.0]
[1732210858119,30.60146788,257.43,257.34,0.5]
[1732210858421,12.8437,257.45,257.32,0.5]
[1732210858422,30.60146788,257.41,257.32,0.5]
[1732210859099,30.60146788,257.41,257.34,0.5]
[1732210859613,12.8437,257.45,257.2,62.0047]
[1732210859614,12.8437,257.45,257.42,0.5]
[1732210859793,30.60146788,257.51,257.44,0.5]
[1732210860198,34.48476788,257.51,257.44,0.5]
[1732210860413,15.519867,257.64,257.49,31.10146788]
[1732210860720,12.7541,257.69,257.63,0.5]
[1732210860896,16.6348,257.69,257.63,0.5]
[1732210861093,16.6348,257.69,257.65,0.5]
[1732210861094,30.60146788,257.68,257.65,0.5]
[1732210861414,30.60146788,257.7,257.66,0.5]
[1732210861718,3.8792,257.78,257.68,0.5]
[1732210861901,30.60146788,257.75,257.68,0.5]
[1732210862103,30.60146788,257.75,257.68,1.0]
[1732210862298,30.60146788,257.75,257.68,0.5]
[1732210862814,30.60146788,257.73,257.65,0.5]
[1732210863007,30.60146788,257.73,257.66,0.5]
[1732210864016,30.60146788,257.73,257.68,0.5]
[1732210864204,30.60146788,257.73,257.66,0.5]
[1732210864401,30.60146788,257.71,257.63,1.0]
[1732210864737,3.8798,257.74,257.63,0.5]
[1732210865025,3.8806,257.69,257.63,0.5]
[1732210865221,30.60146788,257.66,257.6,0.5]
[1732210865597,30.60146788,257.66,257.61,0.5]
[1732210866015,30.60146788,257.66,257.6,0.5]
[1732210866226,30.60146788,257.66,257.61,0.5]
[1732210867117,30.60146788,257.66,257.52,0.5]
[1732210867118,30.60146788,257.62,257.52,0.5]
[1732210867342,30.60146788,257.57,257.48,31.10146788]
[1732210867712,30.60146788,257.55,257.47,0.5]
[1732210868028,23.776884,257.64,257.43,0.5]
[1732210868029,30.60146788,257.51,257.43,0.5]
[1732210868208,34.48516788,257.49,257.43,0.5]
[1732210868408,34.48516788,257.49,257.44,0.5]
[1732210868722,34.48516788,257.49,257.43,0.5]
[1732210869028,34.48516788,257.49,257.4,31.10146788]
[1732210869211,34.48516788,257.49,257.39,0.5]
[1732210869212,30.60146788,257.45,257.39,0.5]
[1732210869524,30.60146788,257.45,257.36,31.10146788]
[1732210869734,30.60146788,257.38,257.25,0.5]
[1732210869924,30.60146788,257.33,257.23,31.60146788]
[1732210870100,30.60146788,257.33,257.24,0.5]
[1732210870300,30.60146788,257.31,257.23,31.60146788]
[1732210871036,30.60146788,257.31,257.23,0.5]
[1732210871232,30.60146788,257.31,257.26,0.5]
[1732210871539,34.48786788,257.31,257.28,0.5]
[1732210872003,34.48786788,257.31,257.26,0.5]
[1732210872508,34.48786788,257.31,257.27,0.5]
[1732210873313,34.48786788,257.31,257.25,0.5]
[1732210873514,34.48786788,257.31,257.25,1.0]
[1732210874112,30.60146788,257.36,257.33,0.5]
[1732210874311,3.8854,257.38,257.33,0.5]
[1732210874312,30.60146788,257.38,257.35,0.5]
[1732210874527,3.8844,257.44,257.37,0.5]
[1732210874528,30.60146788,257.41,257.37,0.5]
[1732210875206,30.60146788,257.41,257.33,0.5]
[1732210875404,3.8844,257.44,257.3,30.60146788]
[1732210875405,30.60146788,257.35,257.3,0.5]
[1732210875819,30.60146788,257.33,257.27,0.5]
[1732210876028,30.60146788,257.33,257.27,1.0]
[1732210876445,23.776884,257.27,257.15,0.5]
[1732210876746,30.60146788,257.26,257.22,0.5]
[1732210876941,30.60146788,257.28,257.24,0.5]
[1732210877115,30.60146788,257.28,257.25,0.5]
[1732210877319,30.60146788,257.3,257.27,0.5]
[1732210877720,30.60146788,257.28,257.21,1.0]
[1732210877931,30.60146788,257.4,257.12,9.723]
[1732210877932,30.60146788,257.26,257.19,1.0]
[1732210878312,30.60146788,257.22,257.16,0.5]
[1732210878515,30.60146788,257.22,257.18,0.5]
[1732210878833,30.60146788,257.22,257.16,0.5]
[1732210879032,30.60146788,257.22,257.19,0.5]
[1732210879818,30.60146788,257.26,257.21,1.0]
[1732210880014,30.34440769,257.26,257.17,19.84688784]
[1732210880222,30.34440769,257.26,257.17,3.8883]
[1732210881231,34.23150769,257.26,257.17,3.8883]
[1732210882030,3.8868,257.28,257.17,34.48976788]
[1732210882231,34.48826788,257.28,257.17,34.48976788]
[1732210882611,30.60146788,257.28,257.17,34.48976788]
[1732210882832,30.60146788,257.3,257.2,20.0]
[1732210883219,30.60146788,257.3,257.21,3.8878]
[1732210883432,30.60146788,257.26,257.18,23.8882]
[1732210883639,30.60146788,257.26,257.18,3.8882]
[1732210883949,30.60146788,257.28,257.19,30.60146788]
[1732210884330,30.60146788,257.3,257.2,20.0]
[1732210884527,30.60146788,257.34,257.24,20.0]
[1732210885241,49.24751706,257.46,257.27,30.60146788]
[1732210885438,3.8831,257.53,257.42,20.0]
[1732210885647,3.8831,257.53,257.44,20.0]
[1732210885648,30.60146788,257.52,257.44,20.0]
[1732210886242,30.60146788,257.54,257.45,30.60146788]
[1732210886542,30.60146788,257.54,257.46,20.0]
[1732210886934,30.60146788,257.56,257.46,20.0]
[1732210887245,30.60146788,257.62,257.54,20.0]
[1732210887545,32.2333,257.74,257.54,20.0]
[1732210887546,30.60146788,257.66,257.57,30.60146788]
[1732210887839,30.60146788,257.66,257.51,3.8833]
[1732210887840,13.58,257.73,257.51,13.5916]
[1732210888043,30.60146788,257.61,257.52,20.0]
[1732210888239,13.58,257.73,257.52,20.0]
[1732210888742,13.58,257.73,257.51,13.5916]
[1732210888743,0.5,257.71,257.51,9.7083]
[1732210889417,13.5816,257.7,257.51,30.60146788]
[1732210889627,30.60146788,257.66,257.57,20.0]
[1732210889925,30.60146788,257.64,257.57,20.0]
[1732210890129,30.60146788,257.64,257.55,20.0]
[1732210890334,3.8804,257.7,257.55,20.0]
[1732210890529,30.60146788,257.67,257.57,30.60146788]
[1732210890734,30.60146788,257.65,257.58,20.0]
[1732210891052,30.60146788,257.59,257.54,20.0]
[1732210891220,30.60146788,257.59,257.5,3.8834]
[1732210891540,30.60146788,257.59,257.49,30.60146788]
[1732210892051,30.60146788,257.54,257.46,9.7098]
[1732210892228,30.60146788,257.56,257.46,40.31126788]
[1732210892739,30.60146788,257.52,257.42,30.60146788]
[1732210893039,30.60146788,257.54,257.44,30.60146788]
[1732210893240,30.60146788,257.57,257.47,30.60146788]
[1732210893445,30.60146788,257.51,257.41,9.7121]
[1732210893626,30.60146788,257.49,257.41,9.7121]
[1732210893829,30.60146788,257.49,257.41,13.5969]
[1732210894230,30.60146788,257.47,257.36,30.60146788]
[1732210894747,30.60146788,257.45,257.36,34.48686788]
[1732210895048,30.60146788,257.43,257.35,9.7141]
[1732210895225,30.60146788,257.41,257.35,9.7141]
[1732210895622,30.60146788,257.44,257.35,9.7141]
[1732210895818,34.48586788,257.44,257.35,13.5998]
[1732210896227,30.60146788,257.44,257.35,13.5998]
[1732210897333,30.60146788,257.4,257.31,30.60146788]
[1732210897537,30.60146788,257.4,257.31,3.8863]
[1732210897730,30.60146788,257.36,257.25,30.60146788]
[1732210897930,12.5593,257.6,257.35,30.60146788]
[1732210898135,30.60146788,257.53,257.42,30.60146788]
[1732210898749,3.8827,257.55,257.32,0.5]
[1732210898750,30.60146788,257.55,257.44,30.60146788]
[1732210898951,30.60146788,257.53,257.42,30.60146788]
[1732210899253,30.60146788,257.51,257.42,13.5961]
[1732210899438,30.60146788,257.47,257.39,20.0]
[1732210899836,30.60146788,257.51,257.41,20.0]
[1732210900331,30.60146788,257.53,257.43,20.0]
[1732210900647,30.60146788,257.51,257.4,30.60146788]
[1732210900830,30.60146788,257.51,257.41,20.0]
[1732210901029,30.60146788,257.49,257.39,20.0]
[1732210901350,30.60146788,257.73,257.59,20.0]
[1732210901554,30.60146788,257.73,257.62,30.60146788]
[1732210901858,3.8794,257.77,257.66,30.60146788]
[1732210901859,34.48086788,257.77,257.66,30.60146788]
[1732210902037,34.48086788,257.77,257.67,20.0]
[1732210902246,34.48086788,257.77,257.66,30.60146788]
[1732210902548,30.60146788,257.75,257.66,30.60146788]
[1732210902752,30.60146788,257.73,257.62,30.60146788]
[1732210902931,30.60146788,257.71,257.62,30.60146788]
[1732210903132,3.8798,257.74,257.55,13.5895]
[1732210903133,30.60146788,257.73,257.64,30.60146788]
[1732210903330,30.60146788,257.73,257.49,0.5]
[1732210903331,30.60146788,257.65,257.49,9.709]
[1732210903538,20.0,257.66,257.4,52.617]
[1732210903539,30.60146788,257.6,257.5,30.60146788]
[1732210904269,20.0,257.66,257.42,13.5964]
[1732210904270,20.0,257.66,257.54,30.60146788]
[1732210904430,30.60146788,257.63,257.54,30.60146788]
[1732210904626,20.0,257.62,257.52,30.60146788]
[1732210904855,30.60146788,257.63,257.54,30.60146788]
[1732210905540,3.8814,257.64,257.54,30.60146788]
[1732210905732,23.8814,257.64,257.54,30.60146788]
[1732210906062,30.60146788,257.63,257.54,30.60146788]
[1732210906248,30.60146788,257.63,257.52,30.60146788]
[1732210906565,30.60146788,257.61,257.52,30.60146788]
[1732210906853,30.60146788,257.63,257.54,30.60146788]
[1732210907058,30.60146788,257.61,257.52,50.60146788]
[1732210907400,3.8814,257.64,257.54,30.60146788]
[1732210907848,30.60146788,257.63,257.54,30.60146788]
[1732210908028,30.60146788,257.61,257.51,9.7081]
[1732210908655,30.60146788,257.55,257.46,30.60146788]
[1732210908831,30.60146788,257.53,257.45,13.5946]
[1732210909551,30.60146788,257.51,257.41,30.60146788]
[1732210910055,30.60146788,257.47,257.38,13.598]
[1732210910354,30.60146788,257.45,257.38,9.7129]
[1732210910650,30.60146788,257.41,257.32,9.7151]
[1732210910849,30.60146788,257.39,257.32,9.7151]
[1732210911341,30.60146788,257.41,257.32,13.6013]
[1732210911741,30.60146788,257.39,257.32,13.6013]
[1732210911959,30.60146788,257.39,257.32,9.7151]
[1732210912661,15.524729,257.52,257.33,20.0]
[1732210912863,45.4129,257.67,257.51,20.0]
[1732210913166,47.55736788,257.67,257.56,30.60146788]
[1732210913750,30.60146788,257.69,257.58,30.60146788]
[1732210913965,34.48216788,257.69,257.59,3.8821]
[1732210914462,30.60146788,257.63,257.53,20.0]
[1732210914665,30.60146788,257.63,257.53,23.8829]
[1732210914969,30.60146788,257.63,257.52,40.30916788]
[1732210915269,30.60146788,257.63,257.52,44.19226788]
[1732210915971,3.8816,257.62,257.52,34.48456788]
[1732210916149,30.60146788,257.65,257.56,30.60146788]
[1732210917078,30.60146788,257.65,257.54,30.60146788]
[1732210917248,30.60146788,257.59,257.5,30.60146788]
[1732210917446,30.60146788,257.59,257.49,20.0]
[1732210917958,30.60146788,257.59,257.5,30.60146788]
[1732210918270,34.48336788,257.61,257.5,34.48486788]
[1732210918457,30.60146788,257.59,257.5,9.7087]
[1732210918643,34.48336788,257.61,257.5,44.19356788]
[1732210918849,30.60146788,257.63,257.52,30.60146788]
[1732210919354,30.60146788,257.65,257.54,30.60146788]
[1732210919669,30.60146788,257.67,257.56,30.60146788]
[1732210919862,3.8798,257.74,257.59,30.60146788]
[1732210920049,34.48186788,257.71,257.61,30.60146788]
[1732210921075,34.48186788,257.71,257.54,30.60146788]
[1732210921076,30.60146788,257.64,257.54,30.60146788]
[1732210921745,20.0,257.61,257.5,30.60146788]
[1732210921951,30.60146788,257.6,257.48,30.60146788]
[1732210922253,34.48346788,257.6,257.5,30.60146788]
[1732210923479,30.60146788,257.63,257.54,30.60146788]